{"text_format":"3","workbook":"xlsx","n_sheets":1,"sheets":["Расписание смен"],"not_rendered":{"defined_names":2},"read":"whole","date_system":"1900"}

{"sheet":"Расписание смен","index":0,"n_rows":59,"n_cols":13,"rows_kept":59,"merged":[[0,1,0,5],[1,2,1,4],[2,2,2,4],[2,10,2,12]]}
[null,"Расписание смен"]
[null,"Неделя: "]
[null,"Название отдела: "]
[]
[null,"ПОНЕДЕЛЬНИК","7:00","8:00","9:00","10:00","11:00","12:00","13:00","14:00","15:00","Больничный?","ИТОГО"]
[null,"Екатерина Ф.","менеджер","менеджер","менеджер","менеджер","менеджер","менеджер","менеджер","менеджер","менеджер",null,{"$f":"COUNTIF('Расписание смен'!$C6:$K6,\"*\")","v":9}]
[null,"Тимофей В.",null,"кассир","кассир","кассир","кассир",{"$nulls":5},{"$f":"COUNTIF('Расписание смен'!$C7:$K7,\"*\")","v":4}]
[null,"Дмитрий С.",null,"стойка регистрации","стойка регистрации","стойка регистрации","стойка регистрации ","стойка регистрации","стойка регистрации","стойка регистрации",null,null,{"$f":"COUNTIF('Расписание смен'!$C8:$K8,\"*\")","v":7}]
[null,"Иван М.",null,"стойка регистрации","стойка регистрации","стойка регистрации","стойка регистрации ","стойка регистрации","стойка регистрации","стойка регистрации",null,null,{"$f":"COUNTIF('Расписание смен'!$C9:$K9,\"*\")","v":7}]
[null,"Владислав П.",{"$nulls":9},"Больничный",{"$f":"COUNTIF('Расписание смен'!$C10:$K10,\"*\")","v":0}]
[null,"Тамара А.",{"$nulls":5},"кассир","кассир","кассир","кассир",null,{"$f":"COUNTIF('Расписание смен'!$C11:$K11,\"*\")","v":4}]
[]
[null,"ВТОРНИК","7:00","8:00","9:00","10:00","11:00","12:00","13:00","14:00","15:00","Больничный?","ИТОГО"]
[null,"Екатерина Ф.","менеджер","менеджер","менеджер","менеджер","менеджер","менеджер","менеджер","менеджер","менеджер",null,{"$f":"COUNTIF('Расписание смен'!$C14:$K14,\"*\")","v":9}]
[null,"Тимофей В.",null,"кассир","кассир","кассир","кассир",{"$nulls":5},{"$f":"COUNTIF('Расписание смен'!$C15:$K15,\"*\")","v":4}]
[null,"Дмитрий С.",null,"стойка регистрации","стойка регистрации","стойка регистрации","стойка регистрации ","стойка регистрации","стойка регистрации","стойка регистрации",null,null,{"$f":"COUNTIF('Расписание смен'!$C16:$K16,\"*\")","v":7}]
[null,"Иван М.",null,"стойка регистрации","стойка регистрации","стойка регистрации","стойка регистрации ","стойка регистрации","стойка регистрации","стойка регистрации",null,null,{"$f":"COUNTIF('Расписание смен'!$C17:$K17,\"*\")","v":7}]
[null,"Владислав П.",{"$nulls":9},"Больничный",{"$f":"COUNTIF('Расписание смен'!$C18:$K18,\"*\")","v":0}]
[null,"Тамара А.",{"$nulls":5},"кассир","кассир","кассир","кассир",null,{"$f":"COUNTIF('Расписание смен'!$C19:$K19,\"*\")","v":4}]
[]
[null,"СРЕДА","7:00","8:00","9:00","10:00","11:00","12:00","13:00","14:00","15:00","Больничный?","ИТОГО"]
[null,"Екатерина Ф.","менеджер","менеджер","менеджер","менеджер","менеджер","менеджер","менеджер","менеджер","менеджер",null,{"$f":"COUNTIF('Расписание смен'!$C22:$K22,\"*\")","v":9}]
[null,"Тимофей В.",null,"кассир","кассир","кассир","кассир",{"$nulls":5},{"$f":"COUNTIF('Расписание смен'!$C23:$K23,\"*\")","v":4}]
[null,"Дмитрий С.",null,"стойка регистрации","стойка регистрации","стойка регистрации","стойка регистрации ","стойка регистрации","стойка регистрации","стойка регистрации",null,null,{"$f":"COUNTIF('Расписание смен'!$C24:$K24,\"*\")","v":7}]
[null,"Иван М.",null,"стойка регистрации","стойка регистрации","стойка регистрации","стойка регистрации ","стойка регистрации","стойка регистрации","стойка регистрации",null,null,{"$f":"COUNTIF('Расписание смен'!$C25:$K25,\"*\")","v":7}]
[null,"Владислав П.",{"$nulls":9},"Больничный",{"$f":"COUNTIF('Расписание смен'!$C26:$K26,\"*\")","v":0}]
[null,"Тамара А.",{"$nulls":5},"кассир","кассир","кассир","кассир",null,{"$f":"COUNTIF('Расписание смен'!$C27:$K27,\"*\")","v":4}]
[]
[null,"ЧЕТВЕРГ","7:00","8:00","9:00","10:00","11:00","12:00","13:00","14:00","15:00","Больничный?","ИТОГО"]
[null,"Екатерина Ф.","менеджер","менеджер","менеджер","менеджер","менеджер","менеджер","менеджер","менеджер","менеджер",null,{"$f":"COUNTIF('Расписание смен'!$C30:$K30,\"*\")","v":9}]
[null,"Тимофей В.",null,"кассир","кассир","кассир","кассир",{"$nulls":5},{"$f":"COUNTIF('Расписание смен'!$C31:$K31,\"*\")","v":4}]
[null,"Дмитрий С.",null,"стойка регистрации","стойка регистрации","стойка регистрации","стойка регистрации ","стойка регистрации","стойка регистрации","стойка регистрации",null,null,{"$f":"COUNTIF('Расписание смен'!$C32:$K32,\"*\")","v":7}]
[null,"Иван М.",null,"стойка регистрации","стойка регистрации","стойка регистрации","стойка регистрации ","стойка регистрации","стойка регистрации","стойка регистрации",null,null,{"$f":"COUNTIF('Расписание смен'!$C33:$K33,\"*\")","v":7}]
[null,"Владислав П.",{"$nulls":9},"Больничный",{"$f":"COUNTIF('Расписание смен'!$C34:$K34,\"*\")","v":0}]
[null,"Тамара А.",{"$nulls":5},"кассир","кассир","кассир","кассир",null,{"$f":"COUNTIF('Расписание смен'!$C35:$K35,\"*\")","v":4}]
[]
[null,"ПЯТНИЦА","7:00","8:00","9:00","10:00","11:00","12:00","13:00","14:00","15:00","Больничный?","ИТОГО"]
[null,"Екатерина Ф.","менеджер","менеджер","менеджер","менеджер","менеджер","менеджер","менеджер","менеджер","менеджер",null,{"$f":"COUNTIF('Расписание смен'!$C38:$K38,\"*\")","v":9}]
[null,"Тимофей В.",null,"кассир","кассир","кассир","кассир",{"$nulls":5},{"$f":"COUNTIF('Расписание смен'!$C39:$K39,\"*\")","v":4}]
[null,"Дмитрий С.",null,"стойка регистрации","стойка регистрации","стойка регистрации","стойка регистрации ","стойка регистрации","стойка регистрации","стойка регистрации",null,null,{"$f":"COUNTIF('Расписание смен'!$C40:$K40,\"*\")","v":7}]
[null,"Иван М.",null,"стойка регистрации","стойка регистрации","стойка регистрации","стойка регистрации ","стойка регистрации","стойка регистрации","стойка регистрации",null,null,{"$f":"COUNTIF('Расписание смен'!$C41:$K41,\"*\")","v":7}]
[null,"Владислав П.",{"$nulls":9},"Больничный",{"$f":"COUNTIF('Расписание смен'!$C42:$K42,\"*\")","v":0}]
[null,"Тамара А.",{"$nulls":5},"кассир","кассир","кассир","кассир",null,{"$f":"COUNTIF('Расписание смен'!$C43:$K43,\"*\")","v":4}]
[]
[null,"СУББОТА","7:00","8:00","9:00","10:00","11:00","12:00","13:00","14:00","15:00","Больничный?","ИТОГО"]
[null,"Екатерина Ф.","менеджер","менеджер","менеджер","менеджер","менеджер","менеджер","менеджер","менеджер","менеджер",null,{"$f":"COUNTIF('Расписание смен'!$C46:$K46,\"*\")","v":9}]
[null,"Тимофей В.",null,"кассир","кассир","кассир","кассир",{"$nulls":5},{"$f":"COUNTIF('Расписание смен'!$C47:$K47,\"*\")","v":4}]
[null,"Дмитрий С.",null,"стойка регистрации","стойка регистрации","стойка регистрации","стойка регистрации ","стойка регистрации","стойка регистрации","стойка регистрации",null,null,{"$f":"COUNTIF('Расписание смен'!$C48:$K48,\"*\")","v":7}]
[null,"Иван М.",null,"стойка регистрации","стойка регистрации","стойка регистрации","стойка регистрации ","стойка регистрации","стойка регистрации","стойка регистрации",null,null,{"$f":"COUNTIF('Расписание смен'!$C49:$K49,\"*\")","v":7}]
[null,"Владислав П.",{"$nulls":9},"Больничный",{"$f":"COUNTIF('Расписание смен'!$C50:$K50,\"*\")","v":0}]
[null,"Тамара А.",{"$nulls":5},"кассир","кассир","кассир","кассир",null,{"$f":"COUNTIF('Расписание смен'!$C51:$K51,\"*\")","v":4}]
[]
[null,"ВОСКРЕСЕНЬЕ","7:00","8:00","9:00","10:00","11:00","12:00","13:00","14:00","15:00","Больничный?","ИТОГО"]
[null,"Екатерина Ф.","менеджер","менеджер","менеджер","менеджер","менеджер","менеджер","менеджер","менеджер","менеджер",null,{"$f":"COUNTIF('Расписание смен'!$C54:$K54,\"*\")","v":9}]
[null,"Тимофей В.",null,"кассир","кассир","кассир","кассир",{"$nulls":5},{"$f":"COUNTIF('Расписание смен'!$C55:$K55,\"*\")","v":4}]
[null,"Дмитрий С.",null,"стойка регистрации","стойка регистрации","стойка регистрации","стойка регистрации ","стойка регистрации","стойка регистрации","стойка регистрации",null,null,{"$f":"COUNTIF('Расписание смен'!$C56:$K56,\"*\")","v":7}]
[null,"Иван М.",null,"стойка регистрации","стойка регистрации","стойка регистрации","стойка регистрации ","стойка регистрации","стойка регистрации","стойка регистрации",null,null,{"$f":"COUNTIF('Расписание смен'!$C57:$K57,\"*\")","v":7}]
[null,"Владислав П.",{"$nulls":9},"Больничный",{"$f":"COUNTIF('Расписание смен'!$C58:$K58,\"*\")","v":0}]
[null,"Тамара А.",{"$nulls":5},"кассир","кассир","кассир","кассир",null,{"$f":"COUNTIF('Расписание смен'!$C59:$K59,\"*\")","v":4}]